[Event "FIDE WSTC Open 50 2025"]
[Site "Prague"]
[Date "2025.02.17"]
[Round "1.36"]
[White "Krizsany, Laszlo"]
[Black "Joel O. Ebiekuta"]
[Result "1-0"]
[Annotator "TA"]
[ECO "E73"]
[WhiteElo "2303"]
[BlackElo "1887"]
[PlyCount "113"]
[EventDate "2025.02.17"]
[EventType "team-tourn"]
[EventCountry "CZE"]
[SourceTitle "playchess.com"]
[Source "ChessBase"]
[SourceQuality "1"]
[TimeControl "40/5400+30:1800+30"]

{[%evp 13,113,25,44,39,56,15,28,33,48,49,41,42,52,60,74,77,117,77,146,131,218,188,174,172,170,185,182,185,181,181,175,182,176,180,184,184,179,185,212,204,214,200,285,198,193,201,196,175,187,161,154,110,114,112,115,109,109,111,110,112,123,119,118,118,118,0,112,0,115,113,112,112,159,149,157,140,135,134,139,118,117,103,156,155,192,184,187,180,262,252,416,413,435,419,460,448,930,848,739,721,29973,29974]} 1. d4 {[%emt 0:00:07]} g6 {[%emt 0:00:10]} 2. c4 {[%emt 0:00:07]} Bg7 {[%emt 0:00:08]} 3. e4 {[%emt 0:00:06]} d6 {[%emt 0:00:19]} 4. Nc3 {[%emt 0:00:29]} Nf6 {[%emt 0:00:19]} 5. Be2 {[%emt 0:00:11]} O-O {[%emt 0:00:20]} 6. Bg5 {[%emt 0:00:06]} Nbd7 {[%emt 0:00:57]} 7. Qd2 {[%emt 0:00:20]} c6 {[%emt 0:01:25]} 8. Rd1 {[%emt 0:03:10] E73: King's Indian: Averbakh Variation without 6...c5.} a6 {[%emt 0:03:30]} 9. Nf3 {[%emt 0:02:33]} b5 {[%emt 0:02:57]} 10. a3 {[%emt 0:04:33] White has an edge.} Qc7 {[%emt 0:01:49]} 11. O-O {[%emt 0:04:09]} Bb7 {[%emt 0:03:28]} 12. Rfe1 {[%emt 0:05:16]} Rfe8 {[%emt 0:06:04]} 13. Rc1 {[%emt 0:07:12][%cal Rc4b5]} bxc4 {[%emt 0:11:13]} 14. Bxc4 {[%emt 0:00:52]} Rad8 $146 {[%emt 0:08:17]} (14... c5 15. dxc5 Nxc5 16. Bxf6 Bxf6 17. b4 Nd7 18. Nd5 Qb8 19. Nc7 Nb6 20. Nxe8 Qxe8 {1-0 Jarmula,L (2492)-Deszczynski,A (2315) Warsaw-chA 67th 2018 (6)}) 15. b4 {[%emt 0:03:22]} a5 {[%emt 0:04:06]} (15... e6 $142) 16. Qa2 $16 {[%emt 0:02:51] White has more active pieces.} d5 {[%emt 0:03:07][%csl Oa5,Oc6] Black has weak pawns} (16... e6 $16) 17. exd5 {[%emt 0:04:29]} cxd5 {[%emt 0:01:07]} 18. Nxd5 {[%emt 0:00:36]} (18. Bxd5 e6 $16) 18... Nxd5 {[%emt 0:01:01]} 19. Bxd5 {[%emt 0:00:10]} Bxd5 {[%emt 0:00:14]} 20. Qxd5 {[%emt 0:00:08]} Nf6 {[%emt 0:01:37]} 21. Qxf7+ {[%emt 0:06:02]} (21. Rxc7 $6 Nxd5 22. Rc4 axb4 $16) 21... Kxf7 {[%emt 0:00:11]} 22. Rxc7 {[%emt 0:00:06]} Nd5 {[%emt 0:00:31]} 23. Rc4 {[%emt 0:02:41]} axb4 {[%emt 0:03:23]} 24. axb4 {[%emt 0:00:03]} Rb8 {[%emt 0:02:20]} 25. Bd2 {[%emt 0:02:58]} Rb5 {[%emt 0:01:42]} 26. Rc5 {[%emt 0:08:19]} Reb8 {[%emt 0:00:21]} 27. Rec1 {[%emt 0:02:19]} Bf6 {[%emt 0:03:34]} (27... Rxc5 {keeps fighting.} 28. bxc5 Ke6 29. Ng5+ Kf5) 28. Kf1 {[%emt 0:03:31]} e6 {[%emt 0:04:44]} 29. Rxb5 {[%emt 0:02:04]} Rxb5 {[%emt 0:00:09]} 30. Rc4 {[%emt 0:01:23]} Ke8 {[%emt 0:04:04]} 31. Ne1 {[%emt 0:02:12]} Rb7 {[%emt 0:02:43]} 32. Nc2 {[%emt 0:01:33]} Be7 {[%emt 0:01:17]} 33. Ke2 {[%emt 0:01:16]} Kd7 {[%emt 0:01:25]} 34. g3 {[%emt 0:01:12]} Bd6 {[%emt 0:01:03]} 35. Kd3 {[%emt 0:03:29]} Rb8 {[%emt 0:03:11]} 36. h4 {[%emt 0:03:05]} Rb7 {[%emt 0:01:22]} 37. Ke4 {[%emt 0:03:34]} Nf6+ {[%emt 0:01:37]} 38. Kf3 {[%emt 0:01:30]} Nd5 {[%emt 0:00:56]} 39. Ke4 {[%emt 0:04:33]} Nf6+ $1 {[%emt 0:00:16]} 40. Kd3 {[%emt 0:00:07]} Nd5 {[%emt 0:00:18]} 41. Ne3 {[%emt 0:30:53] White leaves nothing to chance now.} Nxb4+ {[%emt 0:33:11]} 42. Bxb4 {[%emt 0:00:06]} Bxb4 {[%emt 0:01:02][%mdl 4096] Endgame KRB-KRN. White is a pawn up.} ({Black should play} 42... Rxb4 43. f4 Rb3+ 44. Rc3 Rb1) 43. Ng4 {[%emt 0:01:13]} Ke7 {[%emt 0:02:00] Dodges Nf6} 44. Ke4 {[%emt 0:01:11]} Bd6 {[%emt 0:00:58]} 45. Rc2 {[%emt 0:00:37]} Rb4 {[%emt 0:02:28]} 46. Rc3 {[%emt 0:01:21]} Ra4 {[%emt 0:02:40]} 47. Rb3 {[%emt 0:01:07] And now Rb7+ would win.} Bc5 {[%emt 0:06:37]} (47... Rb4 $142 48. Rxb4 Bxb4) 48. Rb7+ {[%emt 0:01:05]} Kd6 {[%emt 0:00:32]} 49. Rxh7 {[%emt 0:00:03]} Bxd4 {[%emt 0:02:53]} 50. Kf3 {[%emt 0:00:08]} Ra8 {[%emt 0:01:15] [#]} (50... Ra3+ $142 51. Kg2 Ra7 52. Rxa7 Bxa7) 51. Rh6 $1 $18 {[%emt 0:01:34]} Rg8 $2 {[%emt 0:00:00]} (51... Rf8+ 52. Kg2 Rg8) 52. Ke4 {[%emt 0:00:00]} Bc3 {[%emt 0:00:00]} 53. f4 {[%emt 0:00:00][%cal Bf2f4,Bf4e5][%mdl 32]} Rg7 {[%emt 0:00:00]} 54. Ne5 {[%emt 0:00:00]} Bxe5 {[%emt 0:00:00]} (54... Kc5 $142 55. Nxg6 (55. Rxg6 Bxe5 56. Rxe6 Bd4 $16) 55... Rd7) 55. fxe5+ {[%emt 0:00:00]} Ke7 {[%emt 0:00:00]} 56. Rh8 {[%emt 0:00:00] [#] Rb8 would kill now.} g5 {[%emt 0:00:00]} 57. h5 {[%emt 0:00:00] Weighted Error Value: White=0.13 (very precise) /Black=0.38  Mistake:       	---       	Black=8      Inaccurate:     	White=3     	Black=1      OK:         	White=19    	Black=11     Best:        	White=2     	Black=5      Strong:       	White=1     	Black=1} 1-0

[Event "FIDE WSTC Open 50 2025"]
[Site "Prague"]
[Date "2025.02.17"]
[Round "1.38"]
[White "Musil, Martin"]
[Black "Svensson, Bengt"]
[Result "0-1"]
[Annotator "TA"]
[ECO "B34"]
[WhiteElo "1944"]
[BlackElo "2297"]
[PlyCount "84"]
[EventDate "2025.02.17"]
[EventType "team-tourn"]
[EventCountry "CZE"]
[SourceTitle "playchess.com"]
[Source "ChessBase"]
[SourceQuality "1"]
[TimeControl "40/5400+30:1800+30"]

{[%evp 12,84,-24,-42,-39,-49,-34,-41,-38,-35,-2,0,-8,-96,-92,-105,-95,-92,-86,-267,-267,-285,-290,-279,-268,-272,-264,-283,-254,-256,-248,-298,-263,-264,-263,-258,-260,-262,-256,-256,-234,-299,-241,-339,-320,-343,-324,-362,-365,-365,-365,-357,-322,-378,-372,-556,-529,-576,-553,-545,-544,-529,-524,-579,-580,-618,-610,-622,-616,-568,-383,-651,-621,-711,-712]} 1. e4 {[%emt 0:00:04]} c5 {[%emt 0:00:12]} 2. Nf3 {[%emt 0:00:10]} Nc6 {[%emt 0:00:43]} 3. d4 {[%emt 0:00:12]} cxd4 {[%emt 0:00:06]} 4. Nxd4 {[%emt 0:00:02]} Nf6 {[%emt 0:00:25]} 5. Nc3 {[%emt 0:00:10]} e5 {[%emt 0:01:20]} 6. Nb3 {[%emt 0:02:33]} Bb4 {[%emt 0:01:35]} 7. Qd3 {[%emt 0:09:48]} d5 {[%emt 0:05:15] B33: Sicilian: Pelikan and Sveshnikov Variations.} 8. exd5 {[%emt 0:02:35]} Nxd5 {[%emt 0:03:00]} 9. Bd2 {[%emt 0:01:29]} Nxc3 {[%emt 0:04:02] Black is slightly better.} 10. Bxc3 {[%emt 0:00:16]} O-O {[%emt 0:02:58]} (10... Qxd3 {simplifies} 11. Bxd3 Bxc3+ 12. bxc3 Bd7) 11. Bxb4 $146 (11. O-O-O Qf6 12. f3 Rd8 13. Qe3 Rxd1+ 14. Kxd1 Be6 15. a3 Bxc3 16. Qxc3 Qg5 17. Nc5 Rd8+ 18. Nd3 e4 19. fxe4 Bg4+ 20. Be2 Bxe2+ 21. Kxe2 Qxg2+ 22. Nf2 Nd4+ {0-1 Novikov,V (1459)-Ermakov,K (1774) Urals-ch Khanty-Mansiysk 2021 (4)}) 11... Nxb4 {[%emt 0:02:25]} 12. Qc3 (12. Qe4 $1 $11 {remains equal.} a5 13. c3) 12... Qh4 $17 {[%emt 0:07:29] Black is more active.} 13. Bd3 {[%emt 0:29:01] Prevents Qe4+} Nxd3+ {[%emt 0:07:28]} 14. Qxd3 {[%emt 0:00:46]} Be6 {[%emt 0:00:11]} 15. O-O $2 {[%emt 0:01:16] [#] This move loses the game for White.} (15. Qe3 $17) 15... Bc4 $19 {[%emt 0:01:07]} 16. Qf3 {[%emt 0:02:01]} Bxf1 {[%emt 0:02:04]} 17. Rxf1 {[%emt 0:00:02]} Qb4 {[%emt 0:03:24]} 18. Qe2 {[%emt 0:01:26]} Rfe8 {[%emt 0:01:15]} 19. h3 {[%emt 0:00:53]} Rad8 {[%emt 0:01:15]} 20. c3 {[%emt 0:01:35]} Qa4 {[%emt 0:01:45]} 21. Ra1 {[%emt 0:02:52]} h6 {[%emt 0:02:25]} 22. Nc5 {[%emt 0:02:19]} Qc6 {[%emt 0:00:17]} 23. Nb3 {[%emt 0:03:47]} Rd6 {[%emt 0:03:05]} 24. Nd2 {[%emt 0:10:20]} Qd7 {[%emt 0:05:16]} 25. Ne4 {[%emt 0:01:26]} Rd5 {[%emt 0:01:15]} 26. Rc1 {[%emt 0:03:27]} b6 {[%emt 0:03:12]} 27. Rc2 {[%emt 0:07:40]} (27. c4 $142 Rd4 28. Re1) 27... Rd1+ {[%emt 0:05:39]} 28. Kh2 {[%emt 0:00:03]} Qd3 {[%emt 0:00:34]} 29. c4 {[%emt 0:04:22]} Qxe2 {[%emt 0:00:56]} 30. Rxe2 {[%emt 0:00:02][%mdl 4096] Endgame KRR-KRN} Red8 {[%emt 0:01:38]} 31. b3 {[%emt 0:01:02]} f6 {[%emt 0:02:46]} 32. f3 {[%emt 0:02:28]} Kf7 {[%emt 0:00:31]} 33. Rc2 {[%emt 0:01:21]} (33. Kg3 {is a better defense.}) 33... f5 {[%emt 0:01:52]} 34. Nc3 {[%emt 0:00:11]} R1d2 {[%emt 0:00:15]} 35. Rc1 {[%emt 0:00:11]} R8d3 {[%emt 0:00:34]} 36. Kh1 {[%emt 0:05:51]} Ke6 {[%emt 0:01:43]} 37. a3 {[%emt 0:01:13]} Rf2 {[%emt 0:05:03]} 38. b4 {[%emt 0:02:50]} Rdd2 {[%emt 0:00:54]} 39. Rg1 Rc2 {[%emt 0:01:30]} 40. Nb5 {[%emt 0:00:14]} a5 {[%emt 0:02:45]} 41. bxa5 $2 {[%emt 0:30:29] [#]} (41. c5 bxc5 42. bxa5) 41... bxa5 {[%emt 0:30:06]} (41... Rxc4 42. a6 Ra4 43. a7 $11) 42. Re1 {[%emt 0:04:32]} Kf6 {[%emt 0:02:43] Weighted Error Value: White=0.42/Black=0.13 (very precise)   Loses game:     	White=1     	---        Mistake:       	White=3     	---        Inaccurate:     	---       	Black=1      OK:         	White=9     	Black=14     Best:        	White=1     	Black=1      Strong:       	White=1     	---} 0-1

[Event "FIDE WSTC Open 50 2025"]
[Site "Prague"]
[Date "2025.02.17"]
[Round "1.39"]
[White "Jaderberg, Bjorn"]
[Black "Korenek, Frantisek"]
[Result "0-1"]
[Annotator "TA"]
[ECO "D00"]
[WhiteElo "2134"]
[BlackElo "1940"]
[PlyCount "44"]
[EventDate "2025.02.17"]
[EventType "team-tourn"]
[EventCountry "CZE"]
[SourceTitle "playchess.com"]
[Source "ChessBase"]
[SourceQuality "1"]
[TimeControl "40/5400+30:1800+30"]

{[%evp 9,43,12,27,27,27,23,35,25,33,22,41,47,53,9,32,20,20,-50,-59,-40,-13,-1,-6,-37,-39,-51,-54,-111,-87,-104,-83,-214,-219,-278,-263,-284]} 1. d4 {[%emt 0:00:02]} d5 {[%emt 0:00:10]} 2. Nc3 {[%emt 0:00:12]} Nf6 {[%emt 0:00:51]} 3. Bf4 {[%emt 0:00:17]} c6 {[%emt 0:00:22]} 4. e3 {[%emt 0:00:43]} Bf5 {[%emt 0:00:42]} 5. f3 {[%emt 0:00:32]} e6 {[%emt 0:00:18]} 6. g4 {[%emt 0:00:49] D00: 1 d4 d5: Unusual lines.} Bg6 {[%emt 0:00:33]} 7. h4 {[%emt 0:00:42] [#] and h5 should not be overlooked} h6 {[%emt 0:00:26]} 8. Bd3 {[%emt 0:01:16] Black should prevent Bxg6. White is slightly better.} Bxd3 {[%emt 0:00:36]} 9. Qxd3 {[%emt 0:00:41]} Bd6 {[%emt 0:00:10]} 10. Nge2 {[%emt 0:01:00]} Bxf4 {[%emt 0:04:28]} 11. exf4 {[%emt 0:02:39]} Qd6 {[%emt 0:02:20]} 12. O-O-O {[%emt 0:04:17]} Nbd7 {[%emt 0:00:32]} 13. g5 $146 {[%emt 0:16:40]} (13. h5 $11) (13. Qe3 O-O-O 14. Ng3 Nb6 15. Qe5 Nc4 16. Qxd6 Nxd6 17. Rde1 h5 18. g5 Nd7 19. g6 fxg6 20. Rxe6 {½-½ Maldonado Mena,G (2104)-Papadakis,M (2181) Calvia Amateur op 19th 2022 (5)}) 13... Nh5 $15 {[%emt 0:02:07]} 14. f5 {[%emt 0:01:56]} e5 {[%emt 0:05:05]} 15. dxe5 {[%emt 0:03:55]} Qxe5 {[%emt 0:05:28]} 16. Kb1 {[%emt 0:07:13][%cal Of3f4]} O-O-O {[%emt 0:00:30]} 17. Qd4 {[%emt 0:06:31]} Qxd4 {[%emt 0:04:00]} 18. Rxd4 {[%emt 0:04:32]} (18. Nxd4 $15 Rde8 19. Kc1) 18... Rde8 {[%emt 0:02:47]} 19. f4 {[%emt 0:04:05] Against Ne5} Re3 {[%emt 0:00:56]} 20. Nc1 {[%emt 0:02:59]} (20. Rd3 $17 {was called for.} Re7 21. Rd2) 20... Ng3 $19 {[%emt 0:00:43][%csl LRf5,LRh1]} 21. Rh3 {[%emt 0:05:19]} Nxf5 {[%emt 0:00:25]} 22. Rxe3 {[%emt 0:01:26]} Nxe3 {[%emt 0:00:08] Weighted Error Value: White=0.30/Black=0.08 (flawless)   Missed win:     	---       	Black=1      Mistake:       	White=3     	---        Inaccurate:     	White=2     	Black=1      OK:         	White=7     	Black=8} 0-1

[Event "FIDE WSTC Open 50 2025"]
[Site "Prague"]
[Date "2025.02.17"]
[Round "1.40"]
[White "Hejda, Antonin"]
[Black "Wengholm, Anders"]
[Result "1/2-1/2"]
[Annotator "TA"]
[ECO "A48"]
[WhiteElo "1900"]
[BlackElo "2132"]
[PlyCount "48"]
[EventDate "2025.02.17"]
[EventType "team-tourn"]
[EventCountry "CZE"]
[SourceTitle "playchess.com"]
[Source "ChessBase"]
[SourceQuality "1"]
[TimeControl "40/5400+30:1800+30"]

{[%evp 11,48,52,60,-3,58,29,31,22,50,49,45,11,4,10,60,0,0,0,0,-55,33,0,0,-15,1,-8,27,22,0,-20,-9,-11,60,-23,-30,-25,-9,-16,-6]} 1. d4 {[%emt 0:00:06]} Nf6 {[%emt 0:00:13]} 2. Nf3 {[%emt 0:00:10]} g6 {[%emt 0:00:28]} 3. c4 {[%emt 0:00:21]} Bg7 {[%emt 0:00:16]} 4. Nc3 {[%emt 0:00:10]} O-O {[%emt 0:00:13]} 5. Bf4 {[%emt 0:03:58]} c5 {[%emt 0:02:06]} 6. d5 {[%emt 0:00:38]} d6 {[%emt 0:00:41]} 7. e3 {[%emt 0:00:28] E61: King's Indian: Early deviations for White, including Smyslov System.} (7. e4 $14) 7... Qa5 {[%emt 0:14:37]} (7... Nh5 $11) 8. Qd2 {[%emt 0:14:45]} e5 $146 {[%emt 0:20:31]} (8... a6 9. Be2 b5 10. O-O bxc4 11. e4 Nbd7 12. Rfe1 Rb8 13. Rab1 Nh5 14. Bh6 Nb6 {1-0 Boidman,Y (2415)-Thiede,L (2464) Bundesliga 0809 2008 (13.6)}) 9. Bg5 {[%emt 0:11:46][%cal Bf4g5,Bg5h4,Bh4g3][%mdl 32] White is slightly better.} Qb6 {[%emt 0:07:25]} 10. Be2 {[%emt 0:06:16]} h6 {[%emt 0:04:00]} 11. Bh4 {[%emt 0:00:13]} g5 {[%emt 0:08:49]} 12. Bg3 {[%emt 0:00:06]} Nh5 {[%emt 0:00:52]} (12... e4 $11) 13. e4 {[%emt 0:03:54]} ({White should play} 13. Qc2 $14) 13... f5 $11 {[%emt 0:04:13]} 14. exf5 {[%emt 0:08:55]} Bxf5 {[%emt 0:00:16]} 15. O-O {[%emt 0:00:56]} (15. Bd3 $11) 15... Nf4 {[%emt 0:10:16]} (15... e4 $15 16. Ne1 Nxg3 17. hxg3 Nd7) 16. Bxf4 {[%emt 0:06:50]} (16. h4 {keeps more tension.} e4 17. Nh2 Nd7 18. Bg4) 16... exf4 {[%emt 0:00:09]} 17. Rac1 {[%emt 0:00:37]} Qd8 {[%emt 0:02:52]} 18. Bd3 {[%emt 0:00:14]} g4 {[%emt 0:00:46]} 19. Ne1 {[%emt 0:00:39]} Nd7 {[%emt 0:13:26]} 20. Bxf5 {[%emt 0:00:28]} Rxf5 {[%emt 0:00:06]} 21. Nd3 {[%emt 0:01:26]} Qf8 (21... Ne5 $11) 22. Ne4 {[%emt 0:00:31]} (22. Qe2 $14) 22... Bd4 {[%emt 0:01:10]} 23. Kh1 {[%emt 0:00:49]} Re8 {[%emt 0:01:35]} 24. Rce1 {[%emt 0:00:55]} Ne5 {[%emt 0:01:37] Weighted Error Value: White=0.26 (precise) /Black=0.30  Mistake:       	White=3     	Black=4      Inaccurate:     	White=3     	Black=2      OK:         	White=4     	Black=5      Best:        	White=1     	---} 1/2-1/2

[Event "FIDE WSTC Open 50 2025"]
[Site "Prague"]
[Date "2025.02.18"]
[Round "2.1"]
[White "Ehlvest, Jaan"]
[Black "Polak, Tomas"]
[Result "1/2-1/2"]
[Annotator "TA"]
[ECO "E11"]
[WhiteElo "2531"]
[BlackElo "2463"]
[PlyCount "91"]
[EventDate "2025.02.17"]
[EventType "team-tourn"]
[EventCountry "CZE"]
[SourceTitle "playchess.com"]
[Source "ChessBase"]
[SourceQuality "1"]
[TimeControl "40/5400+30:1800+30"]

{[%evp 10,91,20,0,0,3,45,45,48,46,46,28,37,39,31,27,29,19,39,11,12,19,40,29,43,21,20,21,29,37,43,40,22,33,40,47,54,18,38,94,82,75,77,73,64,35,54,67,41,48,39,4,12,0,0,0,8,0,24,0,6,0,19,16,12,12,20,11,31,0,0,0,4,4,4,4,4,4,4,0,0,0,7,0]} 1. d4 {[%emt 0:00:04]} Nf6 {[%emt 0:00:11]} 2. c4 {[%emt 0:00:10]} e6 {[%emt 0:00:20]} 3. Nf3 {[%emt 0:00:25]} Bb4+ {[%emt 0:01:40]} 4. Bd2 {[%emt 0:00:04]} a5 {[%emt 0:00:57]} 5. Nc3 {[%emt 0:00:10]} O-O {[%emt 0:01:32]} 6. Bg5 {[%emt 0:00:09]} h6 {[%emt 0:01:22] E11: Bogo-Indian.} 7. Bh4 {[%emt 0:08:08]} d5 {[%emt 0:02:27]} 8. e3 {[%emt 0:01:37]} Nbd7 {[%emt 0:13:12] White is slightly better.} 9. Rc1 $146 {[%emt 0:03:23]} (9. a3 Be7 10. Qc2 c6 11. Rc1 b6 12. cxd5 exd5 13. Be2 Re8 14. O-O Bb7 15. Rfd1 {1-0 Zubov,A (2615)-Harutjunyan,G (2449) Poti Aleksandria Cup 10th 2015 (9)}) 9... Be7 {[%emt 0:14:02]} 10. Bd3 {[%emt 0:23:21]} dxc4 {[%emt 0:08:48]} 11. Bxc4 {[%emt 0:00:21]} b6 {[%emt 0:00:17]} 12. O-O {[%emt 0:02:15]} Bb7 {[%emt 0:00:12]} 13. Qe2 {[%emt 0:02:16]} Ne4 {[%emt 0:04:19]} 14. Bg3 {[%emt 0:02:24]} Nxg3 {[%emt 0:05:15]} 15. hxg3 {[%emt 0:00:10]} Bd6 {[%emt 0:00:12]} 16. Rfd1 {[%emt 0:08:36]} Qe7 {[%emt 0:16:18]} 17. Nh4 {[%emt 0:02:38]} c6 {[%emt 0:08:34]} 18. e4 {[%emt 0:01:44][%cal Be3e4,Be4e5][%mdl 32]} Bb4 {[%emt 0:01:26]} 19. e5 {[%emt 0:05:09]} Bxc3 {[%emt 0:00:21]} 20. bxc3 {[%emt 0:00:11]} Rfd8 {[%emt 0:08:45]} 21. f4 {[%emt 0:01:48][%cal Bf2f4,Bf4f5][%mdl 32]} Nf8 {[%emt 0:00:27]} 22. f5 {[%emt 0:09:12]} Qg5 {[%emt 0:00:25][%csl LRf5,LRg3]} 23. Qf3 {[%emt 0:00:10]} Ba6 {[%emt 0:01:58]} (23... Rab8 {with more complications.} 24. Qf2 b5 25. fxe6 Nxe6 26. Bd3 c5) 24. Bxa6 {[%emt 0:11:42]} (24. Qxc6 $2 {perishes.} Rac8 (24... Qxg3 25. Bxa6 Qe3+ 26. Kh1 $11) 25. Qf3 Bxc4 $19 (25... Rxc4 $2 26. Rc2 $19)) 24... Rxa6 {[%emt 0:00:05]} 25. fxe6 {[%emt 0:00:37]} fxe6 {[%emt 0:03:48]} 26. Qxc6 {[%emt 0:04:08]} Qxg3 {[%emt 0:00:42]} 27. Qe4 {[%emt 0:05:06]} (27. Nf5 $5 Qg4 28. Ne7+ Kh7 29. d5 $16) 27... Nh7 {[%emt 0:00:54][%cal Bf8h7,Bh7g5,Bg5e4,Be4d2][%mdl 32] [#] ...Ng5 is the strong threat.} 28. Rd3 $1 {[%emt 0:00:49]} Ng5 {[%emt 0:00:13]} 29. Rxg3 {[%emt 0:01:44]} Nxe4 {[%emt 0:00:09]} 30. Re3 {[%emt 0:00:21]} Nd2 {[%emt 0:01:04]} 31. Re2 {[%emt 0:01:51]} Nc4 {[%emt 0:00:08]} 32. Rb1 {[%emt 0:00:21]} Ra7 {[%emt 0:01:13]} 33. a4 {[%emt 0:01:47]} Rc8 {[%emt 0:02:48]} 34. Nf3 {[%emt 0:00:29]} Rd7 {[%emt 0:01:07]} 35. Rb3 {[%emt 0:01:20]} Kf8 {[%emt 0:00:49]} 36. Nd2 {[%emt 0:01:13]} Nxd2 {[%emt 0:01:11]} 37. Rxd2 $11 {[%emt 0:00:05][%mdl 4096] Endgame KRR-KRR} Ke7 {[%emt 0:00:16]} 38. Kf2 {[%emt 0:00:27]} Rdc7 {[%emt 0:00:28]} 39. Rc2 {[%emt 0:02:17]} Rc4 {[%emt 0:00:48] The position is equal.} 40. Ke3 {[%emt 0:01:01]} Rb4 41. cxb4 {[%emt 0:13:44]} Rxc2 {[%emt 0:01:15]} 42. bxa5 {[%emt 0:00:04]} bxa5 {[%emt 0:00:07]} 43. Rb7+ {[%emt 0:00:36]} Kf8 {[%emt 0:00:25]} 44. Rb8+ {[%emt 0:02:51]} Kf7 {[%emt 0:01:00]} 45. Rb7+ {[%emt 0:00:05]} Kf8 {[%emt 0:00:10]} 46. Rb8+ {Weighted Error Value: White=0.08 (flawless) /Black=0.07 (flawless)   Inaccurate:     	White=5     	Black=1      OK:         	White=16    	Black=17     Best:        	White=1     	Black=1      Strong:       	White=1     	---} 1/2-1/2